fUSD/lending_fUSD_20250111
["ID","MTS","AMOUNT","RATE_DAILY","PERIOD"]
[348533399,1736607054846,-151.0,0.00010982,7]
[348533400,1736607054857,-151.0,0.00010982,7]
[348533401,1736607054867,-151.0,0.00010982,7]
[348533402,1736607054879,-500.0,0.00010982,2]
[348533403,1736607054888,-151.0,0.00010982,7]
[348533404,1736607054898,-151.0,0.00010982,7]
[348533405,1736607054907,-151.0,0.00010982,7]
[348533406,1736607054917,-151.0,0.00010982,7]
[348533407,1736607054927,-151.0,0.00010982,7]
[348533408,1736607054937,-151.0,0.00010982,7]
[348533409,1736607054946,-151.0,0.00010982,7]
[348533410,1736607054956,-151.0,0.00010982,7]
[348533411,1736607054965,-151.0,0.00010982,7]
[348533412,1736607054975,-151.0,0.00010982,7]
[348533413,1736607054984,-151.0,0.00010982,7]
[348533414,1736607054994,-151.0,0.00010982,7]
[348533415,1736607055003,-151.0,0.00010982,7]
[348533416,1736607055013,-151.0,0.00010982,7]
[348533417,1736607055022,-151.0,0.00010982,7]
[348533418,1736607055031,-151.0,0.00010982,7]
[348533419,1736607055042,-151.0,0.00010982,7]
[348533420,1736607055051,-219.497538,0.00010982,7]
[348533421,1736607055061,-500.0,0.00010982,2]
[348533422,1736607055071,-500.0,0.00010982,2]
[348533423,1736607055081,-500.0,0.00010982,2]
[348533424,1736607055091,-500.0,0.00010982,2]
[348533425,1736607055100,-500.0,0.00010982,2]
[348533426,1736607055110,-869.41,0.00010982,2]
[348533427,1736607055119,-500.0,0.00010982,2]
[348533428,1736607055129,-809.1,0.00010982,2]
[348533429,1736607055139,-500.0,0.00010982,2]
[348533430,1736607055148,-500.0,0.00010982,2]
[348533431,1736607055158,-859.62,0.00010982,2]
[348533432,1736607055166,-3146.6,0.00010982,2]
[348533433,1736607055178,-500.0,0.00010982,2]
[348533434,1736607055188,-669.59,0.00010982,2]
[348533435,1736607055197,-829.32,0.00010982,2]
[348533436,1736607055207,-1240.9,0.00010982,2]
[348533437,1736607055218,-500.0,0.00010982,2]
[348533438,1736607055228,-2391.89,0.00010982,2]
[348533439,1736607055238,-1044.49,0.00010982,2]
[348533440,1736607055247,-897.59,0.00010982,2]
[348533441,1736607055257,-500.0,0.00010982,2]
[348533442,1736607055267,-1241.46,0.00010982,2]
[348533443,1736607055277,-500.0,0.00010982,2]
[348533444,1736607055287,-985.45,0.00010982,2]
[348533445,1736607055296,-911.64,0.00010982,2]
[348533446,1736607055306,-500.0,0.00010982,2]
[348533447,1736607055316,-693.52,0.00010982,2]
[348533448,1736607055326,-1161.83,0.00010982,2]
[348533449,1736607055335,-617.69,0.00010982,2]
[348533450,1736607055344,-682.51,0.00010983,2]
[348533451,1736607055354,-500.0,0.00010983,2]
[348533452,1736607055363,-500.0,0.00010983,2]
[348533453,1736607055372,-500.0,0.00010983,2]
[348533454,1736607055382,-500.79,0.00010983,2]
[348533455,1736607055391,-533.09,0.00010983,2]
[348533456,1736607055400,-500.0,0.00010983,2]
[348533457,1736607055410,-500.0,0.00010983,2]
[348533458,1736607055420,-500.0,0.00010983,2]
[348533459,1736607055429,-500.0,0.00010983,2]
[348533460,1736607055439,-1125.39,0.00010983,2]
[348533461,1736607055449,-500.0,0.00010983,2]
[348533462,1736607055459,-500.0,0.00010983,2]
[348533463,1736607055468,-500.0,0.00010983,2]
[348533464,1736607055478,-500.0,0.00010983,2]
[348533465,1736607055488,-500.0,0.00010983,2]
[348533466,1736607055498,-500.0,0.00010983,2]
[348533467,1736607055507,-625.96,0.00010983,2]
[348533468,1736607055516,-500.0,0.00010983,2]
[348533469,1736607055526,-500.0,0.00010983,2]
[348533470,1736607055535,-310.54800619,0.00010983,2]
[348533471,1736607055545,-500.0,0.00010983,2]
[348533472,1736607055555,-500.0,0.00010983,2]
[348533473,1736607055564,-500.0,0.00010983,2]
[348533474,1736607055573,-500.0,0.00010983,2]
[348533475,1736607055583,-1874.0,0.00010983,2]
[348533476,1736607055592,-500.0,0.00010983,2]
[348533477,1736607055602,-500.0,0.00010983,2]
[348533478,1736607055612,-500.0,0.00010983,2]
[348533479,1736607055621,-974.64,0.00010983,2]
[348533480,1736607055631,-500.0,0.00010983,2]
[348533481,1736607055641,-500.0,0.00010983,2]
[348533482,1736607055651,-500.0,0.00010983,2]
[348533483,1736607055661,-500.0,0.00010983,2]
[348533484,1736607055670,-1518.19,0.00010983,2]
[348533485,1736607055680,-500.0,0.00010983,2]
[348533486,1736607055689,-500.0,0.00010983,2]
[348533487,1736607055699,-718.75,0.00010983,2]
[348533488,1736607055709,-500.0,0.00010983,2]
[348533489,1736607055719,-766.56,0.00010983,2]
[348533490,1736607055729,-831.78,0.00010983,2]
[348533491,1736607055738,-686.37,0.00010983,2]
[348533492,1736607055748,-254.70960917,0.00010983,2]
[348533493,1736607055757,-500.0,0.00010983,2]
[348533494,1736607055767,-2192.32,0.00010983,2]
[348533495,1736607055777,-500.0,0.00010983,2]
[348533496,1736607055786,-609.9,0.00010983,2]
[348533497,1736607055796,-500.0,0.00010983,2]
[348533498,1736607055807,-500.0,0.00010983,2]
[348533499,1736607055816,-1575.89,0.00010983,2]
[348533500,1736607055826,-500.0,0.00010983,2]
[348533501,1736607055835,-500.0,0.00010983,2]
[348533502,1736607055845,-545.54,0.00010983,2]
[348533503,1736607055855,-2218.59,0.00010983,2]
[348533504,1736607055865,-500.0,0.00010983,2]
[348533505,1736607055878,-500.0,0.00010983,2]
[348533506,1736607055888,-500.0,0.00010983,2]
[348533507,1736607055897,-687.13,0.00010983,2]
[348533508,1736607055907,-683.83,0.00010984,2]
[348533509,1736607055918,-718.87,0.00010984,2]
[348533510,1736607055928,-1308.53,0.00010984,2]
[348533511,1736607055937,-622.72,0.00010984,2]
[348533512,1736607055947,-5365.55,0.00010984,2]
[348533513,1736607055959,-830.23,0.00010984,2]
[348533514,1736607055968,-500.0,0.00010984,2]
[348533515,1736607055979,-1018.36,0.00010984,2]
[348533516,1736607055988,-511.63,0.00010984,2]
[348533517,1736607055998,-570.79,0.00010984,2]
[348533518,1736607056008,-500.0,0.00010984,2]
[348533519,1736607056018,-500.0,0.00010984,2]
[348533520,1736607056027,-775.71,0.00010984,2]
[348533521,1736607056037,-500.0,0.00010985,2]
[348533522,1736607056047,-246.245,0.00010986,2]
[348533523,1736607056056,-500.0,0.00010986,2]
[348533524,1736607056066,-663.05098102,0.00010986,2]
[348533525,1736607056075,-500.0,0.00010986,2]
[348533526,1736607056085,-246.245,0.00010987,2]
[348533527,1736607056095,-663.05098102,0.0001099,2]
[348533528,1736607056104,-766.78,0.0001099,2]
[348533529,1736607056115,-631.2,0.0001099,2]
[348533530,1736607056125,-561.23,0.0001099,2]
[348533531,1736607056134,-500.25,0.0001099,2]
[348533532,1736607056144,-1276.19,0.0001099,2]
[348533533,1736607056154,-202.71905113,0.00010992,2]
[348533534,1736607056163,-663.05098102,0.00010993,2]
[348533535,1736607056174,-663.05098102,0.00010995,2]
[348533536,1736607056184,-246.245,0.00010996,2]
[348533537,1736607056193,-663.05098102,0.00011,2]
[348533538,1736607056203,-500.0,0.00011,2]
[348533539,1736607056212,-3013.21686246,0.00011,2]
[348533540,1736607056223,-550.0,0.00011,2]
[348533541,1736607056233,-1268.0,0.0001102,2]
[348533542,1736607056242,-2015.0,0.0001102,2]
[348533543,1736607056252,-635.0,0.0001102,2]
[348533544,1736607056262,-150.0,0.0001102,2]
[348533545,1736607056272,-566.0,0.0001102,2]
[348533546,1736607056283,-1861.0,0.0001102,2]
[348533547,1736607056293,-2944.0,0.0001102,2]
[348533548,1736607056302,-915.0,0.0001102,2]
[348533549,1736607056312,-1259.0,0.0001102,2]
[348533550,1736607056322,-820.0,0.0001102,2]
[348533551,1736607056332,-537.0,0.0001102,2]
[348533552,1736607056342,-3978.0,0.0001102,2]
[348533553,1736607056353,-250.0,0.0001102,2]
[348533554,1736607056363,-9626.0,0.0001102,2]
[348533555,1736607056374,-151.981,0.0001102,2]
[348533556,1736607056383,-150.0,0.0001102,2]
[348533557,1736607056393,-3896.0,0.0001102,2]
[348533558,1736607056404,-150.0,0.0001102,2]
[348533559,1736607056413,-276.367,0.0001102,2]
[348533560,1736607056424,-719.512,0.0001102,2]
[348533561,1736607056433,-164.76,0.0001102,2]
[348533562,1736607056444,-2243.668,0.00011041,2]
[348533563,1736607056454,-176.853,0.00011041,2]
[348533564,1736607056464,-1219.76964172,0.0001105,2]
[348533565,1736607056474,-179.23847955,0.0001105,2]
[348533566,1736607056484,-600.84,0.00011095,2]
[348533567,1736607056493,-500.0,0.00011095,2]
[348533568,1736607056503,-811.94,0.00011095,2]
[348533569,1736607056512,-500.0,0.00011095,2]
[348533570,1736607056522,-500.0,0.00011095,2]
[348533571,1736607056534,-574.92,0.00011095,2]
[348533572,1736607056543,-1376.4,0.00011095,2]
[348533573,1736607056553,-724.24,0.00011095,2]
[348533574,1736607056563,-530.24,0.00011095,2]
[348533575,1736607056573,-675.649854,0.00011095,2]
[348533576,1736607056583,-657.362686,0.00011095,2]
[348533577,1736607056593,-1771.06,0.00011095,2]
[348533578,1736607056602,-500.0,0.00011095,2]
[348533579,1736607056611,-500.0,0.00011095,2]
[348533580,1736607056621,-500.0,0.00011095,2]
[348533581,1736607056630,-500.0,0.00011095,2]
[348533582,1736607056640,-2941.63,0.00011095,2]
[348533583,1736607056650,-799.38,0.00011095,2]
[348533584,1736607056660,-500.0,0.00011095,2]
[348533585,1736607056670,-500.0,0.00011095,2]
[348533586,1736607056679,-159.754646,0.00011095,2]
[348533587,1736607056689,-164.96734,0.00011095,2]
[348533588,1736607056699,-862.78,0.00011095,2]
[348533589,1736607056708,-964.57,0.00011095,2]
[348533590,1736607056717,-1087.4,0.00011095,2]
[348533591,1736607056727,-807.84,0.00011095,2]
[348533592,1736607056736,-1716.58,0.00011095,2]
[348533593,1736607056746,-961.27,0.00011095,2]
[348533594,1736607056755,-750.47,0.00011095,2]
[348533595,1736607056765,-1628.62,0.00011095,2]
[348533596,1736607056774,-849.75,0.00011095,2]
[348533597,1736607056784,-1834.98,0.00011095,2]
[348533598,1736607056793,-999.0,0.00011095,2]
[348533599,1736607056802,-999.0,0.00011095,2]
[348533600,1736607056812,-999.0,0.00011095,2]
[348533601,1736607056821,-999.0,0.00011095,2]
[348533602,1736607056831,-999.0,0.00011095,2]
[348533603,1736607056840,-999.0,0.00011095,2]
[348533604,1736607056849,-999.0,0.00011095,2]
[348533605,1736607056858,-999.0,0.00011095,2]
[348533606,1736607056868,-999.0,0.00011095,2]
[348533607,1736607056881,-999.0,0.00011095,2]
[348533608,1736607056891,-999.0,0.00011095,2]
[348533609,1736607056900,-999.0,0.00011095,2]
[348533610,1736607056909,-999.0,0.00011095,2]
[348533611,1736607056918,-999.0,0.00011095,2]
[348533612,1736607056927,-999.0,0.00011095,2]
[348533613,1736607056936,-999.0,0.00011095,2]
[348533614,1736607056946,-999.0,0.00011095,2]
[348533615,1736607056956,-999.0,0.00011095,2]
[348533616,1736607056965,-999.0,0.00011095,2]
[348533617,1736607056974,-1019.0,0.00011095,2]
[348533618,1736607056983,-921.6,0.00011095,2]
[348533619,1736607056993,-500.0,0.00011095,2]
[348533620,1736607057002,-1439.0,0.00011106,2]
[348533621,1736607057012,-429.82131162,0.00011129,2]
[348533622,1736607057021,-200.0,0.000112,2]
[348533623,1736607057031,-464.66,0.00011228,2]
[348533624,1736607057040,-202.71905113,0.00011231,2]
[348533625,1736607057049,-827.11,0.00011255,2]
[348533626,1736607057058,-716.41,0.00011255,2]
[348533627,1736607057067,-500.0,0.00011256,2]
[348533628,1736607057077,-397.85755673,0.00011256,2]
[348533629,1736607057087,-500.0,0.00011256,2]
[348533630,1736607057096,-500.0,0.00011256,2]
[348533631,1736607057106,-500.0,0.00011256,2]
[348533632,1736607057115,-500.0,0.00011256,2]
[348533633,1736607057125,-500.0,0.00011256,2]
[348533634,1736607057134,-869.41,0.00011256,2]
[348533635,1736607057144,-532.51,0.00011256,2]
[348533636,1736607057154,-809.1,0.00011256,2]
[348533637,1736607057164,-500.0,0.00011256,2]
[348533638,1736607057175,-500.0,0.00011256,2]
[348533639,1736607057185,-859.62,0.00011256,2]
[348533640,1736607057194,-3146.6,0.00011256,2]
[348533641,1736607057204,-500.0,0.00011256,2]
[348533642,1736607057214,-669.59,0.00011256,2]
[348533643,1736607057224,-829.32,0.00011256,2]
[348533644,1736607057234,-1240.9,0.00011256,2]
[348533645,1736607057243,-500.0,0.00011256,2]
[348533646,1736607057253,-2391.89,0.00011256,2]
[348533647,1736607057262,-1044.49,0.00011256,2]
[348533648,1736607057271,-897.59,0.00011256,2]
[348533649,1736607057281,-351.84597992,0.00011256,2]
[348533650,1736607057291,-1241.46,0.00011256,2]
[348533651,1736607057300,-500.0,0.00011256,2]
[348533652,1736607057310,-985.45,0.00011256,2]
[348533653,1736607057319,-911.64,0.00011256,2]
[348533654,1736607057329,-500.0,0.00011256,2]
[348533655,1736607057339,-693.52,0.00011256,2]
[348533656,1736607057348,-1161.83,0.00011256,2]
[348533657,1736607057358,-617.69,0.00011256,2]
[348533658,1736607057367,-682.51,0.00011257,2]
[348533659,1736607057377,-500.0,0.00011257,2]
[348533660,1736607057387,-500.0,0.00011257,2]
[348533661,1736607057396,-500.0,0.00011257,2]
[348533662,1736607057406,-500.79,0.00011257,2]
[348533663,1736607057415,-533.09,0.00011257,2]
[348533664,1736607057424,-500.0,0.00011257,2]
[348533665,1736607057435,-500.0,0.00011257,2]
[348533666,1736607057445,-500.0,0.00011257,2]
[348533667,1736607057455,-500.0,0.00011257,2]
[348533668,1736607057464,-1125.39,0.00011257,2]
[348533669,1736607057474,-500.0,0.00011257,2]
[348533670,1736607057490,-500.0,0.00011257,2]
[348533671,1736607057666,-500.0,0.00011257,2]
[348533672,1736607057677,-500.0,0.00011257,2]
[348533673,1736607057687,-500.0,0.00011257,2]
[348533674,1736607057696,-500.0,0.00011257,2]
[348533675,1736607057706,-625.96,0.00011257,2]
[348533676,1736607057715,-500.0,0.00011257,2]
[348533677,1736607057724,-500.0,0.00011257,2]
[348533678,1736607057733,-500.0,0.00011257,2]
[348533679,1736607057743,-500.0,0.00011257,2]
[348533680,1736607057753,-500.0,0.00011257,2]
[348533681,1736607057762,-500.0,0.00011257,2]
[348533682,1736607057771,-1874.0,0.00011257,2]
[348533683,1736607057782,-500.0,0.00011257,2]
[348533684,1736607057791,-500.0,0.00011257,2]
[348533685,1736607057801,-500.0,0.00011257,2]
[348533686,1736607057811,-974.64,0.00011257,2]
[348533687,1736607057820,-500.0,0.00011257,2]
[348533688,1736607057830,-500.0,0.00011257,2]
[348533689,1736607057840,-500.0,0.00011257,2]
[348533690,1736607057850,-500.0,0.00011257,2]
[348533691,1736607057859,-1518.19,0.00011257,2]
[348533692,1736607057873,-500.0,0.00011257,2]
[348533693,1736607057883,-500.0,0.00011257,2]
[348533694,1736607057892,-718.75,0.00011257,2]
[348533695,1736607057902,-500.0,0.00011257,2]
[348533696,1736607057914,-766.56,0.00011257,2]
[348533697,1736607057924,-831.78,0.00011257,2]
[348533698,1736607057934,-686.37,0.00011257,2]
[348533699,1736607057943,-315.8,0.00011257,2]
[348533700,1736607057955,-2192.32,0.00011257,2]
[348533701,1736607057965,-500.0,0.00011257,2]
[348533702,1736607057974,-609.9,0.00011257,2]
[348533703,1736607057984,-500.0,0.00011257,2]
[348533704,1736607057994,-500.0,0.00011257,2]
[348533705,1736607058004,-1575.89,0.00011257,2]
[348533706,1736607058013,-500.0,0.00011257,2]
[348533707,1736607058023,-545.54,0.00011257,2]
[348533708,1736607058033,-2218.59,0.00011257,2]
[348533709,1736607058043,-500.0,0.00011257,2]
[348533710,1736607058053,-500.0,0.00011257,2]
[348533711,1736607058062,-500.0,0.00011257,2]
[348533712,1736607058072,-687.13,0.00011257,2]
[348533713,1736607058081,-683.83,0.00011258,2]
[348533714,1736607058091,-718.87,0.00011258,2]
[348533715,1736607058100,-1308.53,0.00011258,2]
[348533716,1736607058111,-622.72,0.00011258,2]
[348533717,1736607058120,-5365.55,0.00011258,2]
[348533718,1736607058130,-830.23,0.00011258,2]
[348533719,1736607058139,-188.63,0.00011258,2]
[348533720,1736607058149,-1018.36,0.00011258,2]
[348533721,1736607058159,-511.63,0.00011258,2]
[348533722,1736607058169,-570.79,0.00011258,2]
[348533723,1736607058182,-500.0,0.00011258,2]
[348533724,1736607058191,-500.0,0.00011258,2]
[348533725,1736607058201,-775.71,0.00011258,2]
[348533726,1736607058211,-500.0,0.0001126,2]
[348533727,1736607058221,-766.78,0.00011264,2]
[348533728,1736607058231,-631.2,0.00011264,2]
[348533729,1736607058240,-561.23,0.00011264,2]
[348533730,1736607058250,-500.25,0.00011264,2]
[348533731,1736607058259,-1276.19,0.00011264,2]
[348533732,1736607058269,-4000.0,0.000113,4]
[348533733,1736607058279,-152.0,0.00011305,4]
[348533734,1736607058288,-600.84,0.00011369,2]
[348533735,1736607058297,-500.0,0.00011369,2]
[348533736,1736607058307,-811.94,0.00011369,2]
[348533737,1736607058317,-500.0,0.00011369,2]
[348533738,1736607058327,-500.0,0.00011369,2]
[348533739,1736607058336,-574.92,0.00011369,2]
[348533740,1736607058346,-1376.4,0.00011369,2]
[348533741,1736607058355,-724.24,0.00011369,2]
[348533742,1736607058365,-530.24,0.00011369,2]
[348533743,1736607058375,-675.649854,0.00011369,2]
[348533744,1736607058384,-657.362686,0.00011369,2]
[348533745,1736607058394,-1771.06,0.00011369,2]
[348533746,1736607058403,-500.0,0.00011369,2]
[348533747,1736607058412,-500.0,0.00011369,2]
[348533748,1736607058422,-500.0,0.00011369,2]
[348533749,1736607058436,-500.0,0.00011369,2]
[348533750,1736607058445,-2941.63,0.00011369,2]
[348533751,1736607058455,-799.38,0.00011369,2]
[348533752,1736607058464,-500.0,0.00011369,2]
[348533753,1736607058473,-862.78,0.00011369,2]
[348533754,1736607058484,-964.57,0.00011369,2]
[348533755,1736607058494,-1087.4,0.00011369,2]
[348533756,1736607058503,-807.84,0.00011369,2]
[348533757,1736607058513,-1716.58,0.00011369,2]
[348533758,1736607058522,-961.27,0.00011369,2]
[348533759,1736607058532,-750.47,0.00011369,2]
[348533760,1736607058542,-1628.62,0.00011369,2]
[348533761,1736607058551,-849.75,0.00011369,2]
[348533762,1736607058561,-1834.98,0.00011369,2]
[348533763,1736607058571,-921.6,0.00011369,2]
[348533764,1736607058580,-500.0,0.00011369,2]
[348533765,1736607058590,-800.0,0.000114,4]
[348533766,1736607058600,-429.82131162,0.00011453,2]
[348533767,1736607058609,-202.71905113,0.00011469,2]
[348533768,1736607058619,-214.86,0.0001149,2]
[348533769,1736607058628,-500.0,0.00011499,2]
[348533770,1736607058638,-500.0,0.00011499,2]
[348533771,1736607058648,-500.0,0.00011499,2]
[348533772,1736607058658,-279009.92227712,0.000115,2]
[348533773,1736607058668,-800.0,0.000115,4]
[348533774,1736607058678,-2751.0,0.00011507,2]
[348533775,1736607058687,-732.43,0.00011511,2]
[348533776,1736607058697,-827.11,0.00011529,2]
[348533777,1736607058707,-716.41,0.00011529,2]
[348533778,1736607058716,-500.0,0.0001153,2]
[348533779,1736607058726,-500.0,0.0001153,2]
[348533780,1736607058736,-500.0,0.0001153,2]
[348533781,1736607058746,-500.0,0.0001153,2]
[348533782,1736607058756,-500.0,0.0001153,2]
[348533783,1736607058765,-500.0,0.0001153,2]
[348533784,1736607058775,-869.41,0.0001153,2]
[348533785,1736607058785,-809.1,0.0001153,2]
[348533786,1736607058794,-500.0,0.0001153,2]
[348533787,1736607058804,-500.0,0.0001153,2]
[348533788,1736607058814,-859.62,0.0001153,2]
[348533789,1736607058823,-3146.6,0.0001153,2]
[348533790,1736607058833,-500.0,0.0001153,2]
[348533791,1736607058843,-669.59,0.0001153,2]
[348533792,1736607058852,-829.32,0.0001153,2]
[348533793,1736607058862,-1240.9,0.0001153,2]
[348533794,1736607058873,-500.0,0.0001153,2]
[348533795,1736607058883,-2391.89,0.0001153,2]
[348533796,1736607058892,-1044.49,0.0001153,2]
[348533797,1736607058901,-897.59,0.0001153,2]
[348533798,1736607058911,-1241.46,0.0001153,2]
[348533799,1736607058920,-985.45,0.0001153,2]
[348533800,1736607058929,-911.64,0.0001153,2]
[348533801,1736607058941,-271.57,0.0001153,2]
[348533802,1736607058951,-693.52,0.0001153,2]
[348533803,1736607058961,-1161.83,0.0001153,2]
[348533804,1736607058971,-617.69,0.0001153,2]
[348533805,1736607058981,-682.51,0.00011531,2]
[348533806,1736607058991,-500.0,0.00011531,2]
[348533807,1736607058999,-500.0,0.00011531,2]
[348533808,1736607059009,-500.0,0.00011531,2]
[348533809,1736607059018,-500.79,0.00011531,2]
[348533810,1736607059027,-533.09,0.00011531,2]
[348533811,1736607059037,-500.0,0.00011531,2]
[348533812,1736607059046,-500.0,0.00011531,2]
[348533813,1736607059057,-500.0,0.00011531,2]
[348533814,1736607059066,-500.0,0.00011531,2]
[348533815,1736607059078,-500.0,0.00011531,2]
[348533816,1736607059090,-1125.39,0.00011531,2]
[348533817,1736607059099,-500.0,0.00011531,2]
[348533818,1736607059108,-500.0,0.00011531,2]
[348533819,1736607059119,-608.36993558,0.00011531,2]
[348533820,1736607059128,-500.0,0.00011531,2]
[348533821,1736607059138,-363.06060245,0.00011531,2]
[348533822,1736607059148,-625.96,0.00011531,2]
[348533823,1736607059157,-500.0,0.00011531,2]
[348533824,1736607059167,-500.0,0.00011531,2]
[348533825,1736607059176,-500.0,0.00011531,2]
[348533826,1736607059185,-500.0,0.00011531,2]
[348533827,1736607059195,-500.0,0.00011531,2]
[348533828,1736607059204,-500.0,0.00011531,2]
[348533829,1736607059216,-1874.0,0.00011531,2]
[348533830,1736607059226,-500.0,0.00011531,2]
[348533831,1736607059235,-500.0,0.00011531,2]
[348533832,1736607059244,-500.0,0.00011531,2]
[348533833,1736607059253,-974.64,0.00011531,2]
[348533834,1736607059262,-500.0,0.00011531,2]
[348533835,1736607059272,-500.0,0.00011531,2]
[348533836,1736607059282,-500.0,0.00011531,2]
[348533837,1736607059291,-500.0,0.00011531,2]
[348533838,1736607059299,-1518.19,0.00011531,2]
[348533839,1736607059308,-500.0,0.00011531,2]
[348533840,1736607059317,-500.0,0.00011531,2]
[348533841,1736607059327,-718.75,0.00011531,2]
[348533842,1736607059336,-500.0,0.00011531,2]
[348533843,1736607059345,-766.56,0.00011531,2]
[348533844,1736607059355,-831.78,0.00011531,2]
[348533845,1736607059364,-686.37,0.00011531,2]
[348533846,1736607059373,-2192.32,0.00011531,2]
[348533847,1736607059382,-500.0,0.00011531,2]
[348533848,1736607059391,-609.9,0.00011531,2]
[348533849,1736607059401,-500.0,0.00011531,2]
[348533850,1736607059412,-500.0,0.00011531,2]
[348533851,1736607059423,-1575.89,0.00011531,2]
[348533852,1736607059433,-500.0,0.00011531,2]
[348533853,1736607059443,-2218.59,0.00011531,2]
[348533854,1736607059453,-545.54,0.00011531,2]
[348533855,1736607059463,-521.17,0.00011531,2]
[348533856,1736607059472,-500.0,0.00011531,2]
[348533857,1736607059482,-500.0,0.00011531,2]
[348533858,1736607059492,-687.13,0.00011531,2]
[348533859,1736607059502,-683.83,0.00011532,2]
[348533860,1736607059511,-718.87,0.00011532,2]
[348533861,1736607059521,-1308.53,0.00011532,2]
[348533862,1736607059530,-622.72,0.00011532,2]
[348533863,1736607059539,-5365.55,0.00011532,2]
[348533864,1736607059548,-830.23,0.00011532,2]
[348533865,1736607059558,-1018.36,0.00011532,2]
[348533866,1736607059568,-511.63,0.00011532,2]
[348533867,1736607059578,-500.0,0.00011532,2]
[348533868,1736607059587,-570.79,0.00011532,2]
[348533869,1736607059596,-500.0,0.00011532,2]
[348533870,1736607059605,-775.71,0.00011532,2]
[348533871,1736607059615,-999.0,0.00011533,2]
[348533872,1736607059624,-500.0,0.00011534,2]
[348533873,1736607059633,-766.78,0.00011538,2]
[348533874,1736607059642,-631.2,0.00011538,2]
[348533875,1736607059652,-561.23,0.00011538,2]
[348533876,1736607059661,-500.25,0.00011538,2]
[348533877,1736607059670,-1276.19,0.00011538,2]
[348533878,1736607059680,-1000.0,0.00011579,2]
[348533879,1736607059690,-800.0,0.000116,4]
[348533880,1736607059700,-150.0,0.00011617,2]
[348533881,1736607059711,-150.0,0.00011619,2]
[348533882,1736607059720,-1219.76964172,0.00011625,2]
[348533883,1736607059730,-500.0,0.00011636,2]
[348533884,1736607059740,-150.0,0.0001164,2]
[348533885,1736607059749,-600.84,0.00011643,2]
[348533886,1736607059759,-500.0,0.00011643,2]
[348533887,1736607059768,-811.94,0.00011643,2]
[348533888,1736607059777,-500.0,0.00011643,2]
[348533889,1736607059787,-500.0,0.00011643,2]
[348533890,1736607059797,-574.92,0.00011643,2]
[348533891,1736607059807,-1376.4,0.00011643,2]
[348533892,1736607059818,-724.24,0.00011643,2]
[348533893,1736607059829,-530.24,0.00011643,2]
[348533894,1736607059839,-675.649854,0.00011643,2]
[348533895,1736607059848,-657.362686,0.00011643,2]
[348533896,1736607059859,-1771.06,0.00011643,2]
[348533897,1736607059870,-500.0,0.00011643,2]
[348533898,1736607059882,-500.0,0.00011643,2]